bitfinex-derivatives/quotes_ETHF0:USTF0_20250727
["timestamp","ask_amount","ask_price","bid_price","bid_amount"]
[1753647595114,21.6996,3833.2,3832.7,0.9181]
[1753647595318,2.64175,3832.8,3832.7,2.17476]
[1753647595518,22.9671,3832.8,3832.7,2.17476]
[1753647595713,22.0395,3832.8,3832.7,2.62346]
[1753647595920,23.02555,3832.8,3832.7,2.1018]
[1753647596218,23.48875,3832.8,3832.7,2.62346]
[1753647598119,22.9671,3832.8,3832.7,2.62346]
[1753647598325,22.0395,3832.8,3832.7,2.62346]
[1753647598526,22.56115,3832.8,3832.7,2.62346]
[1753647598716,22.56115,3832.8,3832.4,1.30424]
[1753647598717,0.52164,3832.9,3832.8,1.36195]
[1753647598922,21.36964,3832.9,3832.8,2.63905]
[1753647599226,23.45124,3832.9,3832.8,1.7584]
[1753647599416,23.45124,3832.9,3832.8,0.6124]
[1753647599617,0.52166,3832.7,3832.6,1.7584]
[1753647599822,23.45126,3832.7,3832.6,1.7584]
[1753647600223,23.45126,3832.7,3832.6,2.28007]
[1753647600526,23.45126,3832.7,3832.6,1.7584]
[1753647600728,23.45126,3832.7,3832.6,2.28007]
[1753647601126,23.45126,3832.7,3832.6,1.7584]
[1753647601326,23.45126,3832.7,3832.6,2.28007]
[1753647601728,22.9296,3832.7,3832.6,2.63907]
[1753647602126,22.0202,3832.7,3832.6,2.63907]
[1753647602927,0.5791,3832.7,3832.6,2.63907]
[1753647603127,3.2078,3832.8,3832.7,2.63906]
[1753647603429,26.66005,3832.8,3832.7,2.63906]
[1753647604429,26.66005,3832.8,3832.7,2.28006]
[1753647604829,26.66005,3832.8,3832.7,1.7584]
[1753647605329,2.60327,3832.6,3832.5,0.8403]
[1753647605526,0.8223,3832.4,3832.2,0.52173]
[1753647605724,2.60334,3832.2,3832.1,2.28013]
[1753647606126,0.2292,3832.1,3832.0,1.146]
[1753647606325,0.2292,3832.1,3832.0,1.96636]
[1753647606326,22.9306,3832.1,3832.0,1.96636]
[1753647606521,22.9306,3832.1,3832.0,2.63916]
[1753647606931,0.3499,3832.5,3832.4,1.3054]
[1753647607133,1.55966,3832.7,3832.6,2.1174]
[1753647607423,1.55966,3832.7,3832.6,2.63907]
[1753647607424,1.038,3832.7,3832.6,2.63907]
[1753647607625,3.2078,3832.8,3832.7,1.36196]
[1753647607822,24.0568,3832.8,3832.7,2.63906]
[1753647609133,1.1722,3833.4,3833.3,0.5417]
[1753647609327,22.54276,3833.4,3833.3,2.63898]
[1753647609633,22.0212,3833.4,3833.3,2.63898]
[1753647609830,21.0782,3833.4,3833.3,2.63898]
[1753647610023,20.849,3833.4,3833.3,2.63898]
[1753647610225,4.0082,3833.7,3832.9,1.30407]
[1753647610226,3.72933,3833.7,3833.5,0.4651]
[1753647610431,3.72933,3833.7,3833.6,1.3054]
[1753647610728,25.15743,3833.7,3833.6,2.1174]
[1753647610922,3.2078,3833.7,3833.6,2.63894]
[1753647611132,24.0608,3833.7,3833.6,2.63894]
[1753647611330,24.58232,3833.7,3833.6,2.1174]
[1753647611532,25.16142,3833.7,3833.6,2.1174]
[1753647611831,24.6399,3833.7,3833.6,2.63894]
[1753647613236,3.2078,3833.7,3833.6,2.63894]
[1753647614334,3.2078,3833.7,3833.6,7.63894]
[1753647614538,3.2078,3833.7,3833.6,2.63894]
[1753647615033,21.94959,3834.0,3833.9,0.7494]
[1753647615242,23.45209,3834.0,3833.9,2.6389]
[1753647617039,22.9306,3834.0,3833.9,2.6389]
[1753647617342,22.4717,3834.0,3833.9,2.6389]
[1753647617541,0.5791,3834.2,3834.1,2.63887]
[1753647617730,21.4261,3834.2,3834.1,2.63887]
[1753647617935,21.94756,3834.2,3834.1,2.63887]
[1753647618642,22.99116,3834.2,3834.1,2.63887]
[1753647618842,23.45006,3834.2,3834.1,2.63887]
[1753647621035,23.45006,3834.2,3834.1,2.27987]
[1753647622135,23.45006,3834.2,3834.1,1.7584]
[1753647622550,23.45006,3834.2,3834.1,2.27987]
[1753647622740,2.02403,3833.8,3833.7,1.8148]
[1753647622941,26.65593,3833.8,3833.7,0.6124]
[1753647623242,1.34382,3833.7,3833.6,0.52153]
[1753647623440,2.60312,3833.7,3833.6,0.52153]
[1753647623741,0.52154,3833.6,3833.5,0.98664]
[1753647623942,23.44814,3833.6,3833.5,0.52154]
[1753647624844,23.44814,3833.6,3833.5,0.97454]
[1753647625641,23.44814,3833.6,3833.5,0.453]
[1753647625847,23.44814,3833.6,3833.2,0.8241]
[1753647625848,1.34388,3833.4,3833.3,1.81487]
[1753647626150,23.44818,3833.4,3833.3,2.27997]
[1753647626445,2.60322,3833.1,3833.0,0.5216]
[1753647626648,23.44822,3833.1,3833.0,0.5216]
[1753647627642,23.44822,3833.1,3833.0,0.9746]
[1753647628248,22.9266,3833.1,3833.0,2.2557]
[1753647628549,22.9266,3833.1,3833.0,2.5941]
[1753647628749,2.0816,3833.1,3833.0,5.8019]
[1753647629049,20.845,3833.1,3833.0,2.5941]
[1753647630850,2.59547,3833.4,3833.3,2.25458]
[1753647631049,23.44147,3833.4,3833.3,2.25458]
[1753647631750,23.44146,3833.4,3833.3,2.25458]
[1753647632051,22.9199,3833.4,3833.3,2.59298]
[1753647632252,22.0355,3833.4,3833.3,2.59298]
[1753647632956,21.4273,3833.4,3833.3,2.59298]
[1753647633147,0.5813,3833.4,3833.3,2.59298]
[1753647636656,1.1895,3833.4,3833.3,2.59298]
[1753647636952,2.0739,3833.4,3833.3,2.59298]
[1753647641951,2.0739,3833.4,3833.3,1.81378]
[1753647642152,2.0739,3833.4,3833.3,0.52158]
[1753647642353,0.8405,3833.4,3833.2,0.52158]
[1753647642558,23.65777206,3833.3,3833.2,0.52158]
[1753647643149,24.17935206,3833.3,3833.2,0.52158]
[1753647643356,23.65777206,3833.3,3833.2,0.52158]
[1753647647361,0.8405,3832.9,3832.8,0.4533]
[1753647647557,22.9189,3832.9,3832.8,0.97495]
[1753647648064,22.9189,3832.9,3832.8,2.02735]
[1753647648248,22.9189,3832.9,3832.8,2.25465]
[1753647648857,23.44053,3832.9,3832.8,0.52165]
[1753647649258,22.9189,3832.9,3832.8,0.52165]
[1753647649963,22.9189,3832.9,3832.8,0.82565]
[1753647650262,24.17940206,3832.9,3832.8,0.52165]
[1753647651656,23.65777206,3832.9,3832.4,0.4408]
[1753647651860,2.59559,3832.6,3832.5,0.52167]
[1753647652056,0.8405,3832.2,3832.1,4.0467]
[1753647652253,2.59563,3832.2,3832.1,0.82574]
[1753647652759,2.59563,3832.2,3832.1,1.27904]
[1753647653061,2.59563,3832.2,3832.1,1.71984]
[1753647653761,2.59563,3832.2,3832.1,2.02744]
[1753647654163,2.59563,3832.2,3832.1,2.25474]
[1753647655559,2.0739,3832.2,3832.1,2.25474]
[1753647656259,2.59563,3832.2,3832.1,2.25474]
[1753647661464,2.1264,3831.9,3831.8,2.47049821]
[1753647661666,22.9744,3831.9,3831.8,2.47049821]
[1753647661965,22.9744,3831.9,3831.8,2.82309821]
[1753647663167,4.2678,3832.4,3832.3,0.81761]
[1753647663362,24.0558,3832.4,3832.3,2.62991]
[1753647663562,3.2078,3832.4,3832.3,2.62991]
[1753647663763,24.0558,3832.4,3832.3,2.62991]
[1753647664463,3.2078,3832.4,3832.3,2.62991]
[1753647664657,20.849,3832.6,3832.5,1.34029]
[1753647664865,0.4466,3833.0,3832.9,0.75543]
[1753647665063,3.2078,3833.2,3833.1,2.62981]
[1753647665064,3.5685,3833.2,3833.1,2.62981]
[1753647665272,3.2078,3833.2,3833.1,2.62981]
[1753647665570,5.3342,3833.7,3833.6,2.62974]
[1753647665766,24.0568,3833.7,3833.6,2.62974]
[1753647665969,3.2078,3833.7,3833.6,2.62974]
[1753647666168,3.59906333,3833.7,3833.6,2.62974]
[1753647666663,0.39126333,3833.7,3833.6,2.62974]
[1753647666863,3.2078,3834.3,3834.2,0.52146]
[1753647667172,3.59079188,3834.3,3834.2,2.62966]
[1753647667767,5.27059188,3834.3,3834.2,2.62966]
[1753647667972,5.71719188,3834.3,3834.2,2.62966]
[1753647668375,5.3342,3834.3,3834.2,2.62966]
[1753647670567,5.3342,3834.3,3833.4,3.2078]
[1753647670568,1.6541,3834.0,3833.9,1.9882]
[1753647670768,2.86527206,3834.0,3833.9,2.2771]
[1753647670968,20.846,3834.1,3834.0,1.34008]
[1753647671169,25.3948,3834.3,3834.2,1.79686]
[1753647671368,25.91624,3834.3,3834.2,2.62966]
[1753647671873,26.23134,3834.3,3834.2,2.62966]
[1753647672075,26.70364,3834.3,3834.2,2.62966]
[1753647673676,26.70364,3834.3,3834.2,2.1082]
[1753647674080,26.70364,3834.3,3834.2,0.7761]
[1753647674375,2.64787,3834.1,3834.0,1.0099]
[1753647674578,2.64787,3834.1,3834.0,1.4667]
[1753647674771,2.64787,3834.1,3834.0,1.98818]
[1753647674976,2.64787,3834.1,3834.0,2.27708]
[1753647675373,2.64787,3834.1,3834.0,1.7556]
[1753647675975,2.64787,3834.1,3834.0,2.27708]
[1753647676171,2.64787,3834.1,3834.0,0.2959]
[1753647676373,1.7657,3833.5,3833.4,1.7556]
[1753647676676,2.86527206,3833.5,3833.4,1.7556]
[1753647676877,2.86527206,3833.5,3833.4,2.27717]
[1753647677077,2.86527206,3833.5,3833.4,2.62977]
[1753647680877,0.8073,3834.1,3834.0,0.52148]
[1753647681078,0.8073,3834.1,3834.0,2.62968]
[1753647681079,0.37681614,3834.1,3834.0,2.62968]
[1753647681876,22.187,3834.8,3834.7,1.8925]
[1753647682077,21.3797,3834.8,3834.7,2.41389]
[1753647682683,21.7404,3834.8,3834.7,2.41389]
[1753647682885,3.2078,3835.0,3834.9,1.8925]
[1753647683086,24.0568,3835.0,3834.9,2.41386]
[1753647683277,21.7414,3835.0,3834.9,2.41386]
[1753647683477,22.188,3835.0,3834.9,2.41386]
[1753647683685,22.9754,3835.0,3834.9,2.41386]
[1753647683880,22.5031,3835.0,3834.9,2.41386]
[1753647684082,2.50457206,3835.3,3835.2,1.10612]
[1753647684377,3.2078,3835.4,3835.3,0.52131]
[1753647684578,21.7434,3835.7,3835.6,1.33987]
[1753647684777,22.19,3835.7,3835.6,2.41377]
[1753647684982,22.5051,3835.7,3835.6,2.41377]
[1753647685182,22.9774,3835.7,3835.6,2.41377]
[1753647685384,2.1264,3835.7,3835.6,2.41377]
[1753647685982,1.6541,3835.7,3835.6,2.41377]
[1753647687383,2.1264,3835.7,3835.6,2.41377]
[1753647687786,0.5317,3835.7,3835.6,2.41377]
[1753647687976,24.2708,3835.9,3835.8,2.38944]
[1753647688690,3.4078,3835.9,3835.8,2.38944]
[1753647689583,5.5047,3835.9,3835.8,2.38944]
[1753647690291,6.02592,3835.9,3835.8,1.51774]
[1753647690494,6.02592,3835.9,3835.8,0.83194]
[1753647690787,6.02592,3835.9,3835.8,0.52124]
[1753647690986,0.2,3835.9,3835.8,2.38944]
[1753647693180,0.2,3835.9,3835.8,5.59724]
[1753647693787,0.56877454,3835.9,3835.8,5.59724]
[1753647694191,0.56883392,3835.9,3835.8,5.59724]
[1753647696392,2.66573392,3835.9,3835.8,2.38944]
[1753647696697,2.2969,3835.9,3835.8,2.05934]
[1753647696893,2.2969,3835.9,3835.8,0.52124]
[1753647697095,3.74599436,3835.9,3835.8,0.52124]
[1753647697696,4.26722436,3835.9,3835.8,0.52124]
[1753647698188,4.26722436,3835.9,3835.6,0.52125]
[1753647698189,2.61817,3835.7,3835.6,0.52125]
[1753647698794,1.34339,3835.6,3835.5,0.52127]
[1753647698993,4.85689436,3835.9,3835.1,1.75132]
[1753647698994,2.0969,3835.4,3835.3,0.52128]
[1753647700296,2.0969,3835.4,3835.3,1.75878]
[1753647700489,2.0969,3835.4,3835.3,2.38948]
[1753647701300,2.0969,3835.4,3835.3,2.05938]
[1753647701602,0.52127,3835.6,3835.2,0.52131]
[1753647701603,0.7534,3835.3,3835.2,0.52131]
[1753647701801,2.0969,3835.3,3835.2,0.52131]
[1753647703096,2.61823,3835.3,3835.2,0.52131]
[1753647703604,2.61825,3835.0,3834.9,0.52134]
[1753647703797,2.0969,3834.9,3834.4,1.30358]
[1753647703997,3.2078,3835.0,3834.3,2.38964]
[1753647703998,0.3015,3834.4,3834.3,2.38964]
[1753647704203,0.5303,3835.0,3834.9,1.06986]
[1753647704397,0.5206,3835.0,3834.9,2.38956]
[1753647704803,0.8704,3835.0,3834.9,2.38956]
[1753647705004,1.332,3835.0,3834.9,2.38956]
[1753647706204,1.6335,3835.0,3834.9,2.38956]
[1753647706401,2.0969,3835.0,3834.9,2.38956]
[1753647707598,2.0969,3835.0,3834.9,1.51786]
[1753647707798,2.0969,3835.0,3834.9,0.83206]
[1753647707998,2.0969,3835.0,3834.9,1.51786]
[1753647708303,2.0969,3835.0,3834.9,1.75866]
[1753647709895,2.0969,3835.0,3834.9,0.52136]
[1753647710095,2.61825,3835.0,3834.9,0.52136]
[1753647710300,2.0969,3835.0,3834.9,0.52136]
[1753647710797,2.61825,3835.0,3834.9,0.52136]
[1753647711796,2.0969,3835.0,3834.9,0.52136]
[1753647711996,2.0969,3835.0,3834.9,2.38936]
[1753647711997,1.6335,3835.0,3834.9,2.38936]
[1753647712405,2.0969,3835.0,3834.9,2.38936]
[1753647715312,20.859,3835.2,3835.1,2.38933]
[1753647715606,4.0782,3835.7,3835.6,2.05917]
[1753647715909,0.71587289,3835.7,3835.6,2.38927]
[1753647716219,0.2,3835.9,3835.8,2.38924]
[1753647716401,0.91594858,3835.9,3835.8,2.38924]
[1753647717109,0.2,3835.9,3835.8,2.38924]
[1753647721211,0.2,3835.9,3835.8,1.08914]
[1753647721212,2.2347,3835.9,3835.8,1.08914]
[1753647721507,0.8954,3835.8,3835.4,3.2078]
[1753647721813,2.77294263,3835.5,3835.3,0.5213]
[1753647722015,2.0347,3835.4,3835.3,0.5213]
[1753647722909,2.55599,3835.4,3835.3,0.5213]
[1753647723111,2.0347,3835.4,3835.3,1.0326]
[1753647723716,2.55599,3835.4,3835.3,1.0326]
[1753647723917,2.55599,3835.4,3835.3,0.5213]
[1753647724117,2.0347,3835.4,3835.3,0.5213]
[1753647726015,2.55599,3835.4,3835.3,0.5213]
[1753647726516,2.0347,3835.4,3835.3,0.5213]
[1753647726717,2.55599,3835.4,3835.3,0.5213]
[1753647726908,0.8215,3835.4,3834.9,3.2078]
[1753647727114,2.0347,3835.0,3834.9,0.52136]
[1753647729512,2.55605,3835.0,3834.9,0.52136]
[1753647729913,2.0347,3835.0,3834.9,0.52136]
[1753647730816,2.0347,3835.0,3834.9,0.81396]
[1753647731019,2.0347,3835.0,3834.9,1.25496]
[1753647731314,2.0347,3835.0,3834.9,1.47366]
[1753647731516,2.55605,3835.0,3834.9,1.47366]
[1753647731722,2.0347,3835.0,3834.9,1.47366]
[1753647732212,2.0347,3835.0,3834.9,1.71436]
[1753647733619,2.0347,3835.0,3834.9,2.33696]
[1753647738420,2.55605,3835.0,3834.9,2.33696]
[1753647738813,2.0347,3835.0,3834.9,2.33696]
[1753647744021,2.55605,3835.0,3834.9,2.33696]
[1753647744221,2.55605,3835.0,3834.9,1.03266]
[1753647744526,2.55605,3835.0,3834.9,0.81396]
[1753647745124,2.0347,3835.0,3834.9,1.03266]
[1753647745422,2.0347,3835.0,3834.9,1.71436]
[1753647746129,2.55605,3835.0,3834.9,1.71436]
[1753647746327,2.55605,3835.0,3834.9,1.47366]
[1753647746723,2.0347,3834.6,3834.5,0.9523]
[1753647746928,2.0347,3834.6,3834.5,1.47372]
[1753647747130,2.0347,3834.6,3834.5,1.71442]
[1753647747320,2.0347,3834.6,3834.5,2.33702]
[1753647747929,2.0347,3834.6,3834.5,0.52142]
[1753647748525,2.5561,3834.6,3834.5,0.52142]
[1753647749624,2.0347,3834.6,3834.5,0.52142]
[1753647750026,2.0347,3834.6,3834.5,0.94872]
[1753647750326,2.0347,3834.6,3834.5,1.23942]
[1753647750530,2.0347,3834.6,3834.5,1.70532]
[1753647750730,2.0347,3834.6,3834.5,2.04672]
[1753647753427,2.0347,3834.6,3834.5,2.33572]
[1753647754033,2.0347,3834.6,3834.5,1.99432]
[1753647755138,2.0347,3834.6,3834.5,2.33572]
[1753647755434,2.0347,3834.6,3834.5,1.70532]
[1753647755636,2.5561,3834.6,3834.5,1.70532]
[1753647756335,2.0347,3834.6,3834.5,1.70532]
[1753647756526,2.5561,3834.6,3834.5,1.70532]
[1753647756730,2.5561,3834.6,3834.5,1.46382]
[1753647757431,0.82306,3834.3,3834.2,0.52144]
[1753647757634,2.52796,3834.3,3834.2,0.52144]
[1753647757830,1.78222,3833.8,3833.7,0.9488]
[1753647758034,2.0065,3833.5,3833.4,2.33586]
[1753647758336,0.7458,3833.5,3833.4,2.33586]
[1753647758537,1.5782,3833.5,3833.4,2.33586]
[1753647758737,2.0065,3833.5,3833.4,2.33586]
[1753647759034,1.5782,3833.5,3833.4,2.33586]
[1753647759231,0.3031,3833.5,3833.4,2.33586]
[1753647759431,0.9591,3833.7,3833.6,1.32564]
[1753647759638,1.7049,3833.7,3833.6,2.33584]
[1753647760039,2.0065,3833.7,3833.6,2.33584]
[1753647760841,4.0402,3834.1,3834.0,2.33578]
[1753647761035,3.4355,3834.1,3834.0,2.33578]
[1753647761239,3.2078,3834.6,3834.5,0.289]
[1753647761532,1.1741,3834.8,3834.3,1.3036]
[1753647761533,2.0065,3834.8,3834.7,1.90839]
[1753647761740,2.72347077,3834.8,3834.7,2.33569]
[1753647764434,2.0065,3834.8,3834.7,2.33569]
[1753647766737,1.5782,3834.8,3834.7,2.33569]
[1753647766938,1.458,3835.1,3835.0,2.33565]
[1753647767246,0.3208,3835.3,3835.2,2.33562]
[1753647767439,1.2766,3835.3,3835.2,2.33562]
[1753647767638,1.99332428,3835.3,3835.2,2.33562]
[1753647768240,2.29492428,3835.3,3835.2,2.33562]
[1753647768444,2.72322428,3835.3,3835.2,2.33562]
[1753647768642,2.0065,3835.3,3835.2,2.33562]
[1753647770133,5.2143,3835.3,3835.2,2.33562]
[1753647770343,3.2078,3835.3,3835.2,2.33562]
[1753647770943,0.7458,3835.6,3835.2,2.33562]
[1753647771143,2.94471905,3835.9,3835.8,2.33554]
[1753647771441,2.49482767,3835.9,3835.8,2.33554]
[1753647771843,1.7782,3835.9,3835.8,2.33554]
[1753647773641,2.2065,3835.9,3835.8,2.33554]
[1753647775146,2.94471905,3835.9,3835.8,1.99414]
[1753647778347,2.94471905,3835.9,3835.8,2.32254]
[1753647783755,1.78981905,3835.9,3835.8,2.32254]
[1753647784457,2.25311905,3835.9,3835.8,2.32254]
[1753647785258,2.98091905,3835.9,3835.8,2.32254]
[1753647786560,0.2,3835.9,3835.8,2.32254]
[1753647787457,0.5399,3835.9,3835.8,2.32254]
[1753647787854,1.0032,3835.9,3835.8,2.32254]
[1753647790657,0.2,3835.9,3835.8,2.32254]
[1753647792161,2.2497,3835.9,3835.8,2.32254]
[1753647795168,1.8182,3835.9,3835.8,2.32254]
[1753647795569,2.2497,3835.9,3835.8,2.32254]
[1753647800175,2.2497,3835.9,3835.8,1.70514]
[1753647801176,2.2497,3835.9,3835.8,1.46364]
[1753647801375,3.49088368,3835.9,3835.8,0.52124]
[1753647803179,2.96966368,3835.9,3835.8,0.52124]
[1753647803376,3.49088368,3835.9,3835.8,0.52124]
[1753647803979,2.77092,3835.9,3835.8,0.52124]
[1753647804582,3.49087015,3835.9,3835.8,0.52124]
[1753647808881,0.8108,3835.6,3835.4,0.4396]
[1753647809081,1.54901905,3835.5,3835.4,0.52129]
[1753647809683,1.54901905,3835.5,3835.4,0.96089]
[1753647809684,3.26749905,3835.5,3835.4,0.96089]
[1753647810286,3.26749905,3835.5,3835.4,1.25959]
[1753647810583,3.26749905,3835.5,3835.4,0.52129]
[1753647810878,0.7331,3835.2,3834.9,0.241]
[1753647811084,2.28211905,3835.0,3834.9,0.96096]
[1753647811287,2.74621905,3835.0,3834.9,0.96096]
[1753647811486,2.74621905,3835.0,3834.9,1.72086]
[1753647811986,2.74621905,3835.0,3834.9,0.82006]
[1753647812188,3.26756905,3835.0,3834.9,0.52136]
[1753647814086,2.74621905,3835.0,3834.9,1.25966]
[1753647814384,2.74621905,3835.0,3834.9,1.72086]
[1753647814585,3.26756905,3835.0,3834.9,0.52136]
[1753647814781,1.33217,3834.8,3834.5,0.3288]
[1753647814984,2.52937,3834.8,3834.7,0.52139]
[1753647815378,3.26758905,3834.8,3834.7,0.52139]
[1753647817486,2.74621905,3834.8,3834.7,0.52139]
[1753647817789,2.74621905,3834.8,3834.7,0.96099]
[1753647818992,3.26758905,3834.8,3834.7,1.47989]
[1753647819992,2.74621905,3834.8,3834.7,2.33129]
[1753647820295,2.008,3834.8,3834.7,2.33129]
[1753647824796,2.52937,3834.8,3834.7,2.33129]
[1753647825093,2.008,3834.8,3834.7,2.33129]
[1753647825796,2.52937,3834.8,3834.7,2.33129]
[1753647825995,2.008,3834.8,3834.7,2.33129]
[1753647826594,2.74621905,3834.8,3834.7,2.33129]
[1753647829600,3.26758905,3834.8,3834.7,2.33129]
[1753647829793,2.74621905,3834.8,3834.7,2.33129]
[1753647830500,3.26758905,3834.8,3834.7,2.33129]
[1753647830800,2.74621905,3834.8,3834.7,2.33129]
[1753647831000,3.26758905,3834.8,3834.7,2.00249]
[1753647831297,3.26758905,3834.8,3834.7,1.25969]
[1753647831497,3.26758905,3834.8,3834.7,0.52139]
[1753647831699,3.26758905,3834.8,3834.7,0.96099]
[1753647832099,3.26758905,3834.8,3834.7,1.72089]
[1753647832599,3.26758905,3834.8,3834.7,1.25969]
[1753647833801,3.26758905,3834.8,3834.7,1.72089]
[1753647834000,3.26758905,3834.8,3834.7,0.52139]
[1753647834700,3.26758905,3834.8,3834.7,1.25969]
[1753647834900,2.74621905,3834.8,3834.7,1.72089]
[1753647835815,2.74621905,3834.8,3834.7,2.33129]
[1753647838895,3.26758905,3834.8,3834.7,2.33129]
[1753647839201,3.26758905,3834.8,3834.7,2.00249]
[1753647839400,3.26758905,3834.8,3834.7,0.52139]
[1753647840000,3.26758905,3834.8,3834.7,0.94579]
[1753647840401,3.26758905,3834.8,3834.7,1.21249]
[1753647840603,3.26758905,3834.8,3834.7,1.66569]
[1753647841211,3.98711393,3834.8,3834.7,1.66569]
[1753647843608,3.98711393,3834.8,3834.7,1.42459]
[1753647844405,3.98711393,3834.8,3834.7,1.66569]
[1753647845008,3.98711393,3834.8,3834.7,1.98019]
[1753647846008,3.46574393,3834.8,3834.7,2.27929]
[1753647847010,3.98711393,3834.8,3834.7,2.27929]
[1753647848209,3.98711393,3834.8,3834.7,1.66569]
[1753647849308,3.98711393,3834.8,3834.7,0.52139]
[1753647850106,3.98711393,3834.8,3834.7,0.94579]
[1753647850507,2.05122,3834.5,3834.4,1.4588]
[1753647850706,24.01354472,3834.5,3834.4,1.1443]
[1753647852107,24.01354472,3834.5,3834.4,1.66572]
[1753647852608,24.01354472,3834.5,3834.4,1.39902]
[1753647852907,24.01354472,3834.5,3834.4,1.66572]
[1753647857617,24.01354472,3834.5,3834.4,1.98022]
[1753647860419,24.01354472,3834.5,3834.4,2.27932]
[1753647865115,23.49212472,3834.5,3834.4,2.27932]
[1753647865320,24.23034377,3834.5,3834.4,2.27932]
[1753647866120,24.75176377,3834.5,3834.4,2.27932]
[1753647869522,3.93176377,3834.5,3834.4,2.27932]
[1753647869723,24.74576377,3834.5,3834.4,2.27932]
[1753647877834,23.80204377,3834.5,3834.4,2.27932]
[1753647878029,23.28426377,3834.5,3834.4,2.27932]
[1753647878229,22.76284377,3834.5,3834.4,2.27932]
[1753647878831,22.86241285,3834.5,3834.4,2.27932]
[1753647879031,23.32031285,3834.5,3834.4,2.27932]
[1753647880529,5.00308813,3835.1,3835.0,2.24615]
[1753647880730,5.21345369,3835.1,3835.0,2.24615]
[1753647880935,22.06591852,3835.1,3835.0,2.24615]
[1753647882735,21.52883039,3835.1,3835.0,2.24615]
[1753647882936,22.26706933,3835.1,3835.0,2.24615]
[1753647883136,22.56776933,3835.1,3835.0,2.24615]
[1753647883336,22.80443894,3835.1,3835.0,2.24615]
[1753647883532,22.80443894,3835.1,3834.7,1.30345]
[1753647883533,1.30347,3834.9,3834.8,0.3983]
[1753647883738,1.5407,3834.8,3834.7,0.52139]
[1753647883933,1.9687,3834.8,3834.7,0.91969]
[1753647884440,2.49008,3834.8,3834.7,0.52139]
[1753647884639,1.9687,3834.8,3834.7,0.52139]
[1753647884840,2.49007,3834.8,3834.7,0.91969]
[1753647885039,2.49007,3834.8,3834.7,1.41619]
[1753647885238,2.49007,3834.8,3834.7,1.65739]
[1753647885839,2.49007,3834.8,3834.7,1.41619]
[1753647886040,2.49007,3834.8,3834.7,1.19979]
[1753647886342,1.9687,3834.8,3834.7,1.65739]
[1753647886934,2.49007,3834.8,3834.7,1.65739]
[1753647887141,1.9687,3834.8,3834.7,1.65739]
[1753647887443,2.49007,3834.8,3834.7,1.65739]
[1753647887840,2.49007,3834.8,3834.7,1.41619]
[1753647888240,2.49007,3834.8,3834.7,0.6147]
[1753647888446,2.4901,3834.6,3834.5,1.19979]
[1753647888643,24.03233894,3834.6,3834.5,1.19979]
[1753647889144,21.54223894,3834.6,3834.5,2.24619]
[1753647889344,20.804,3834.6,3834.5,2.24619]
[1753647890245,21.84293894,3834.6,3834.5,2.24619]
[1753647890436,22.30083894,3834.6,3834.5,2.24619]
[1753647891044,22.80043894,3834.6,3834.5,2.24619]
[1753647891246,23.51093894,3834.6,3834.5,2.24619]
[1753647893249,23.51093894,3834.6,3834.5,0.52142]
[1753647893449,24.03233894,3834.6,3834.5,0.52142]
[1753647893748,24.03233894,3834.6,3834.5,0.91972]
[1753647894641,23.51093894,3834.6,3834.5,1.19982]
[1753647894838,23.51093894,3834.6,3834.5,1.96482]
[1753647895044,24.03233894,3834.6,3834.5,1.96482]
[1753647899548,3.9758,3834.7,3834.6,1.2945]
[1753647899852,24.7748,3834.7,3834.6,2.2434]
[1753647900351,21.567,3834.7,3834.6,2.2434]
[1753647901044,0.3189,3834.7,3834.6,2.2434]
[1753647901245,3.2078,3835.2,3835.1,0.80633]
[1753647901246,0.3189,3835.2,3835.1,0.80633]
[1753647901449,1.24923894,3835.4,3835.3,0.7731]
[1753647901653,24.73205073,3835.4,3835.3,2.24331]
[1753647903153,24.73205073,3835.4,3835.3,1.64781]
[1753647903449,24.21076073,3835.4,3835.3,1.64781]
[1753647903656,0.72022179,3835.4,3835.3,2.24331]
[1753647903858,21.51722179,3835.4,3835.3,2.24331]
[1753647905060,23.47052179,3835.4,3835.3,2.24331]
[1753647905350,1.30563,3835.2,3835.0,0.76244]
[1753647905555,1.30566,3835.0,3834.9,0.52135]
[1753647905754,2.76412073,3835.0,3834.9,0.52135]
[1753647906150,0.52136,3834.9,3834.8,0.2411]
[1753647906349,1.9533,3834.7,3834.6,0.6059]
[1753647906548,22.7503,3834.7,3834.6,0.8854]
[1753647906950,23.27169,3834.7,3834.6,1.6478]
[1753647907148,1.59349,3834.7,3834.6,2.2433]
[1753647907456,22.59539,3834.7,3834.6,2.2433]
[1753647907653,22.99639,3834.7,3834.6,2.2433]
[1753647907847,23.26969,3834.7,3834.6,2.2433]
[1753647909061,22.7483,3834.7,3834.6,2.2433]
[1753647909358,22.3473,3834.7,3834.6,2.2433]
[1753647910451,23.26969,3834.7,3834.6,2.2433]
[1753647910846,22.7483,3834.7,3834.6,2.2433]
[1753647911456,23.26969,3834.7,3834.6,2.2433]
[1753647912456,0.4491,3835.2,3834.9,0.7731]
[1753647912761,4.8422,3835.7,3835.6,1.64767]
[1753647912954,26.90220791,3835.7,3835.6,1.64767]
[1753647913360,26.90220791,3835.7,3835.6,1.95817]
[1753647913561,26.90220791,3835.7,3835.6,2.24317]
[1753647913762,27.42345791,3835.7,3835.6,2.24317]
[1753647914061,26.90220791,3835.7,3835.6,2.24317]
[1753647914262,26.67582581,3835.7,3835.6,2.24317]
[1753647914665,5.20752581,3835.7,3835.6,2.24317]
[1753647914960,25.23252581,3835.7,3835.6,2.24317]
[1753647915263,22.02472581,3835.7,3835.6,2.24317]